fUST/lending_fUST_20250626
["ID","MTS","AMOUNT","RATE_DAILY","PERIOD"]
[367717193,1750900254475,-3910.18,0.000216,2]
[367717194,1750900254484,-417.72871327,0.00021626,2]
[367717195,1750900254494,-1600.75623165,0.00021637,2]
[367717196,1750900254503,-2000.0,0.00021637,2]
[367717197,1750900254512,-2000.0,0.00021637,2]
[367717198,1750900254522,-2000.0,0.00021637,2]
[367717199,1750900254532,-2000.0,0.00021637,2]
[367717200,1750900254541,-2000.0,0.00021637,2]
[367717201,1750900254551,-2400.0,0.00021637,2]
[367717202,1750900254560,-699.31,0.00021643,2]
[367717203,1750900254569,-573.72,0.00021643,2]
[367717204,1750900254579,-1914.05,0.00021643,2]
[367717205,1750900254589,-1605.56,0.00021643,2]
[367717206,1750900254598,-705.61,0.00021643,2]
[367717207,1750900254607,-1108.98,0.00021643,2]
[367717208,1750900254616,-716.92,0.00021643,2]
[367717209,1750900254625,-767.34,0.00021643,2]
[367717210,1750900254635,-477.73,0.00021643,2]
[367717211,1750900254644,-476.87,0.00021643,2]
[367717212,1750900254653,-686.41,0.00021643,2]
[367717213,1750900254663,-200.0,0.0002174,3]
[367717214,1750900254673,-1000.0,0.00021752,2]
[367717215,1750900254685,-319.5923591,0.00021753,2]
[367717216,1750900254694,-739.45592366,0.00021762,5]
[367717217,1750900254704,-1000.0,0.00021767,2]
[367717218,1750900254713,-500.0,0.0002178,17]
[367717219,1750900254723,-1000.0,0.00021791,2]
[367717220,1750900254732,-168.0,0.00021821,2]
[367717221,1750900254741,-417.72871328,0.00021832,2]
[367717222,1750900254752,-1000.0,0.00021868,2]
[367717223,1750900254761,-2000.0,0.000219,2]
[367717224,1750900254770,-151.0,0.000219,3]
[367717225,1750900254780,-274.19569083,0.00021917,2]
[367717226,1750900254790,-665.76735748,0.00021917,2]
[367717227,1750900254800,-699.31,0.00021917,2]
[367717228,1750900254809,-573.72,0.00021917,2]
[367717229,1750900254819,-1914.05,0.00021917,2]
[367717230,1750900254828,-1605.56,0.00021917,2]
[367717231,1750900254837,-705.61,0.00021917,2]
[367717232,1750900254847,-1108.98,0.00021917,2]
[367717233,1750900254857,-716.92,0.00021917,2]
[367717234,1750900254866,-767.34,0.00021917,2]
[367717235,1750900254875,-477.73,0.00021917,2]
[367717236,1750900254885,-476.87,0.00021917,2]
[367717237,1750900254894,-686.41,0.00021917,2]
[367717238,1750900254903,-500.0,0.00021917,2]
[367717239,1750900254912,-500.0,0.00021917,2]
[367717240,1750900254921,-551.65556059,0.00021917,2]
[367717241,1750900254930,-151.0,0.00021918,2]
[367717242,1750900254943,-151.0,0.00021918,2]
[367717243,1750900254953,-151.0,0.00021918,2]
[367717244,1750900254963,-187.411932,0.00021918,2]
[367717245,1750900254972,-500.0,0.00021973,2]
[367717246,1750900254982,-500.0,0.00021973,2]
[367717247,1750900254991,-361.84228614,0.00021973,2]
[367717248,1750900255000,-500.0,0.00021973,2]
[367717249,1750900255009,-500.0,0.00021973,2]
[367717250,1750900255019,-500.0,0.00021973,2]
[367717251,1750900255028,-500.0,0.00021973,2]
[367717252,1750900255037,-151.331184,0.00021973,7]
[367717253,1750900255046,-151.0,0.00021973,7]
[367717254,1750900255055,-151.0,0.00021973,7]
[367717255,1750900255064,-151.0,0.00021973,7]
[367717256,1750900255074,-151.0,0.00021973,7]
[367717257,1750900255083,-404.908274,0.00021973,7]
[367717258,1750900255092,-1193.3748508,0.00021982,2]
[367717259,1750900255102,-229232.04917774,0.0002199,7]
[367717260,1750900255112,-151.0,0.0002199,7]
[367717261,1750900255121,-151.0,0.0002199,7]
[367717262,1750900255130,-151.0,0.0002199,7]
[367717263,1750900255140,-151.0,0.0002199,7]
[367717264,1750900255149,-151.0,0.0002199,7]
[367717265,1750900255158,-151.0,0.0002199,7]
[367717266,1750900255167,-151.0,0.0002199,7]
[367717267,1750900255176,-151.0,0.0002199,7]
[367717268,1750900255188,-151.0,0.0002199,7]
[367717269,1750900255196,-151.0,0.0002199,7]
[367717270,1750900255205,-151.0,0.0002199,7]
[367717271,1750900255214,-151.0,0.0002199,7]
[367717272,1750900255223,-151.0,0.0002199,7]
[367717273,1750900255232,-151.0,0.0002199,7]
[367717274,1750900255241,-151.0,0.0002199,7]
[367717275,1750900255251,-404.908274,0.0002199,7]
[367717276,1750900255260,-1254.398886,0.0002199,7]
[367717277,1750900255269,-1254.398886,0.0002199,7]
[367717278,1750900255279,-151.0,0.0002199,7]
[367717279,1750900255288,-151.0,0.0002199,7]
[367717280,1750900255297,-220.991151,0.0002199,7]
[367717281,1750900255306,-151.0,0.0002199,7]
[367717282,1750900255315,-220.991151,0.0002199,7]
[367717283,1750900255324,-151.0,0.0002199,7]
[367717284,1750900255334,-151.0,0.0002199,7]
[367717285,1750900255343,-151.0,0.0002199,7]
[367717286,1750900255353,-151.0,0.0002199,7]
[367717287,1750900255362,-230.201491,0.0002199,7]
[367717288,1750900255371,-151.0,0.0002199,7]
[367717289,1750900255381,-230.201491,0.0002199,7]
[367717290,1750900255390,-151.0,0.0002199,7]
[367717291,1750900255399,-208.2835,0.0002199,2]
[367717292,1750900255408,-208.2835,0.0002199,2]
[367717293,1750900255417,-151.0,0.0002199,7]
[367717294,1750900255427,-151.0,0.0002199,7]
[367717295,1750900255438,-299.723613,0.0002199,7]
[367717296,1750900255448,-299.723613,0.0002199,7]
[367717297,1750900255457,-151.0,0.0002199,7]
[367717298,1750900255466,-151.0,0.0002199,7]
[367717299,1750900255476,-151.0,0.0002199,7]
[367717300,1750900255485,-21616.55970573,0.00022,10]
[367717301,1750900255495,-2398.5403974,0.00022,2]
[367717302,1750900255504,-34374.41933794,0.00022,2]
[367717303,1750900255514,-351.72011154,0.00022,2]
[367717304,1750900255523,-10788.59656484,0.00022,2]
[367717305,1750900255533,-37847.08106029,0.00022,2]
[367717306,1750900255542,-259511.13317281,0.00022,2]
[367717307,1750900255552,-62220.5310337,0.00022,2]
[367717308,1750900255563,-1000.0,0.00022,22]
[367717309,1750900255571,-112029.66228477,0.00022,4]
[367717310,1750900255694,-437.92,0.00016428,3]
[367717311,1750900255704,-705.66,0.00016438,2]
[367717312,1750900255714,-705.66,0.00016712,2]
[367717313,1750900255724,-705.66,0.00016986,2]
[367717314,1750900255734,-705.66,0.0001726,2]
[367717315,1750900255840,-705.66,0.00017534,2]
[367717316,1750900255868,-23.78,0.00017808,2]
[367717317,1750900255885,-681.88,0.00017808,2]
[367717318,1750900255895,-705.66,0.00018082,2]
[367717319,1750900255904,-534.511547,0.00018356,2]
[367717320,1750900256165,-342.25608031,0.00016438,2]
[367717321,1750900256366,-117.74391969,0.00016438,2]
[367717322,1750900256375,-460.0,0.00016438,2]
[367717323,1750900256385,-460.0,0.00016712,2]
[367717324,1750900256394,-101.94649167,0.00016712,2]
[367717339,1750901384041,4814.06195653,0.00015712,2]
[367717340,1750901384068,20000.0,0.00015712,2]
[367717341,1750901384091,85.93804347,0.00015712,2]
[367717357,1750901432795,-300.0,0.00016437,2]
[367717358,1750901432805,-763.0,0.00016437,2]
[367717359,1750901432814,-300.0,0.00016437,2]
[367717360,1750901432823,-430.0,0.00016438,2]
[367717361,1750901432833,-460.0,0.00016438,2]
[367717362,1750901432843,-460.0,0.00016438,2]
[367717363,1750901432852,-460.0,0.00016438,2]
[367717364,1750901432861,-460.0,0.00016438,2]
[367717365,1750901432871,-460.0,0.00016438,2]
[367717366,1750901432880,-460.0,0.00016438,2]
[367717367,1750901432890,-460.0,0.00016438,2]
[367717368,1750901432900,-460.0,0.00016438,2]
[367717369,1750901432910,-460.0,0.00016438,2]
[367717370,1750901432921,-460.0,0.00016438,2]
[367717371,1750901432931,-460.0,0.00016438,2]
[367717372,1750901432941,-282.62713042,0.00016438,2]
[367717373,1750901432952,-421.17,0.00016438,2]
[367717374,1750901432962,-460.0,0.00016438,2]
[367717375,1750901432972,-460.0,0.00016438,2]
[367717376,1750901432981,-460.0,0.00016438,2]
[367717377,1750901432991,-460.0,0.00016438,2]
[367717378,1750901433001,-460.0,0.00016438,2]
[367717379,1750901433011,-460.0,0.00016438,2]
[367717380,1750901433022,-460.0,0.00016438,2]
[367717381,1750901433031,-400.0,0.00016438,2]
[367717382,1750901433041,-460.0,0.00016438,2]
[367717383,1750901433051,-460.0,0.00016438,2]
[367717384,1750901433061,-460.0,0.00016438,2]
[367717385,1750901433071,-400.0,0.00016438,2]
[367717386,1750901433081,-236.32,0.00016438,2]
[367717387,1750901433091,-460.0,0.00016438,2]
[367717388,1750901433101,-460.0,0.00016438,2]
[367717389,1750901433111,-460.0,0.00016438,2]
[367717390,1750901433122,-460.0,0.00016438,2]
[367717391,1750901433132,-460.0,0.00016438,2]
[367717392,1750901433142,-460.0,0.00016438,2]
[367717393,1750901433152,-460.0,0.00016438,2]
[367717394,1750901433162,-601.66,0.00016438,2]
[367717395,1750901433174,-460.0,0.00016438,2]
[367717396,1750901433183,-1584.07,0.00016438,2]
[367717397,1750901433194,-543.54,0.00016438,2]
[367717398,1750901433203,-460.0,0.00016438,2]
[367717399,1750901433214,-460.0,0.00016438,2]
[367717400,1750901433223,-463.99,0.00016438,2]
[367717401,1750901433233,-460.0,0.00016438,2]
[367717402,1750901433243,-1000.0,0.00016438,2]
[367717403,1750901433253,-460.0,0.00016438,2]
[367717404,1750901433262,-342.33,0.00016438,2]
[367717405,1750901433272,-460.0,0.00016438,2]
[367717406,1750901433282,-460.0,0.00016438,2]
[367717407,1750901433291,-554.24,0.00016438,2]
[367717408,1750901433301,-460.0,0.00016438,2]
[367717409,1750901433311,-460.0,0.00016438,2]
[367717410,1750901433320,-622.01,0.00016438,2]
[367717411,1750901433330,-460.0,0.00016438,2]
[367717412,1750901433339,-704.07,0.00016438,2]
[367717413,1750901433349,-912.96,0.00016438,2]
[367717414,1750901433358,-563.30582452,0.00016438,2]
[367717415,1750901433368,-460.0,0.00016438,2]
[367717416,1750901433377,-637.95,0.00016438,2]
[367717417,1750901433387,-460.0,0.00016438,2]
[367717418,1750901433396,-1510.05,0.00016438,2]
[367717419,1750901433405,-460.0,0.00016438,2]
[367717420,1750901433414,-460.0,0.00016438,2]
[367717421,1750901433424,-460.0,0.00016438,2]
[367717422,1750901433433,-460.0,0.00016438,2]
[367717423,1750901433443,-460.0,0.00016438,2]
[367717424,1750901433452,-460.0,0.00016438,2]
[367717425,1750901433461,-460.0,0.00016438,2]
[367717426,1750901433471,-460.0,0.00016438,2]
[367717427,1750901433480,-460.0,0.00016438,2]
[367717428,1750901433489,-257.8,0.00016438,2]
[367717429,1750901433499,-526.13,0.00016438,2]
[367717430,1750901433508,-460.0,0.00016438,2]
[367717431,1750901433518,-322.11756725,0.00016438,2]
[367717432,1750901433527,-460.0,0.00016438,2]
[367717433,1750901433537,-428.18,0.00016438,2]
[367717434,1750901433547,-460.0,0.00016438,2]
[367717435,1750901433557,-668.54,0.00016438,2]
[367717436,1750901433567,-460.0,0.00016438,2]
[367717437,1750901433576,-460.0,0.00016438,2]
[367717438,1750901433585,-573.49,0.00016438,2]
[367717439,1750901433594,-460.0,0.00016438,2]
[367717440,1750901433604,-460.0,0.00016438,2]
[367717441,1750901433613,-357.86870065,0.00016438,2]
[367717442,1750901433623,-460.0,0.00016438,2]
[367717443,1750901433632,-460.0,0.00016438,2]
[367717444,1750901433642,-68.34237352,0.00016438,2]
[367717445,1750901433829,482.486027,0.00013699,2]
[367717459,1750901438599,-275.38953771,0.00016438,2]
[367717461,1750901438608,-5899.11944907,0.00016438,2]
[367717467,1750901438838,-460.0,0.00016438,2]
[367717468,1750901438848,-10847.71252444,0.00016438,2]
[367717469,1750901438857,-460.0,0.00016711,2]
[367717470,1750901438866,-460.0,0.00016711,2]
[367717471,1750901438876,-460.0,0.00016711,2]
[367717472,1750901438886,-460.0,0.00016711,2]
[367717473,1750901438895,-460.0,0.00016712,2]
[367717474,1750901438904,-460.0,0.00016712,2]
[367717475,1750901438913,-460.0,0.00016712,2]
[367717476,1750901438924,-606.87,0.00016712,2]
[367717477,1750901438934,-460.0,0.00016712,2]
[367717478,1750901438943,-460.0,0.00016712,2]
[367717479,1750901438953,-343.37,0.00016712,2]
[367717480,1750901438962,-460.0,0.00016712,2]
[367717481,1750901438972,-460.0,0.00016712,2]
[367717482,1750901438982,-460.0,0.00016712,2]
[367717483,1750901438991,-460.0,0.00016712,2]
[367717484,1750901439001,-460.0,0.00016712,2]
[367717485,1750901439011,-491.1,0.00016712,2]
[367717486,1750901439020,-460.0,0.00016712,2]
[367717487,1750901439030,-460.0,0.00016712,2]
[367717488,1750901439040,-460.0,0.00016712,2]
[367717489,1750901439050,-460.0,0.00016712,2]
[367717490,1750901439061,-460.0,0.00016712,2]
[367717491,1750901439071,-460.0,0.00016712,2]
[367717492,1750901439081,-460.0,0.00016712,2]
[367717493,1750901439090,-460.0,0.00016712,2]
[367717494,1750901439100,-460.0,0.00016712,2]
[367717495,1750901439109,-557.61929492,0.00016712,2]
[367717496,1750901439120,-460.0,0.00016712,2]
[367717497,1750901439131,-1584.07,0.00016712,2]
[367717498,1750901439140,-543.54,0.00016712,2]
[367717499,1750901439149,-460.0,0.00016712,2]
[367717500,1750901439158,-463.99,0.00016712,2]
[367717501,1750901439170,-1000.0,0.00016712,2]
[367717502,1750901439391,-460.0,0.00016712,2]
[367717503,1750901439407,-460.0,0.00016712,2]
[367717504,1750901439418,-554.24,0.00016712,2]
[367717505,1750901439427,-460.0,0.00016712,2]
[367717506,1750901439436,-622.01,0.00016712,2]
[367717507,1750901439446,-704.07,0.00016712,2]
[367717508,1750901439455,-912.96,0.00016712,2]
[367717509,1750901439465,-460.0,0.00016712,2]
[367717510,1750901439475,-637.95,0.00016712,2]
[367717511,1750901439484,-460.0,0.00016712,2]
[367717512,1750901439493,-1510.05,0.00016712,2]
[367717513,1750901439504,-460.0,0.00016712,2]
[367717514,1750901439515,-460.0,0.00016712,2]
[367717515,1750901439524,-460.0,0.00016712,2]
[367717516,1750901439534,-460.0,0.00016712,2]
[367717517,1750901439543,-460.0,0.00016712,2]
[367717518,1750901439552,-526.13,0.00016712,2]
[367717519,1750901439561,-460.0,0.00016712,2]
[367717520,1750901439571,-668.54,0.00016712,2]
[367717521,1750901439580,-460.0,0.00016712,2]
[367717522,1750901439589,-573.49,0.00016712,2]
[367717523,1750901439598,-460.0,0.00016712,2]
[367717524,1750901439607,-460.0,0.00016712,2]
[367717525,1750901439617,-485.13560277,0.00016712,2]
[367717526,1750901439625,-460.0,0.00016712,2]
[367717527,1750901439635,-318.71873948,0.0001698,2]
[367717528,1750901439643,-460.0,0.00016985,2]
[367717529,1750901439652,-460.0,0.00016985,2]
[367717530,1750901439661,-588.16,0.00016985,2]
[367717531,1750901439671,-460.0,0.00016985,2]
[367717532,1750901439680,-499.99314182,0.00016985,2]
[367717533,1750901439689,-460.0,0.00016986,2]
[367717534,1750901439698,-460.0,0.00016986,2]
[367717535,1750901439707,-460.0,0.00016986,2]
[367717536,1750901439716,-244.45,0.00016986,2]
[367717537,1750901439726,-296.68,0.00016986,2]
[367717538,1750901439735,-460.0,0.00016986,2]
[367717539,1750901439745,-460.0,0.00016986,2]
[367717540,1750901439754,-488.89022097,0.00016986,2]
[367717541,1750901439763,-460.0,0.00016986,2]
[367717542,1750901439772,-460.0,0.00016986,2]
[367717543,1750901439782,-460.0,0.00016986,2]
[367717544,1750901439791,-460.0,0.00016986,2]
[367717545,1750901439800,-460.0,0.00016986,2]
[367717546,1750901439809,-460.0,0.00016986,2]
[367717547,1750901439818,-1584.07,0.00016986,2]
[367717548,1750901439828,-543.54,0.00016986,2]
[367717549,1750901439838,-460.0,0.00016986,2]
[367717550,1750901439847,-463.99,0.00016986,2]
[367717551,1750901439857,-460.0,0.00016986,2]
[367717552,1750901439866,-460.0,0.00016986,2]
[367717553,1750901439875,-554.24,0.00016986,2]
[367717554,1750901439885,-460.0,0.00016986,2]
[367717555,1750901439894,-622.01,0.00016986,2]
[367717556,1750901439905,-704.07,0.00016986,2]
[367717557,1750901439915,-912.96,0.00016986,2]
[367717558,1750901439925,-460.0,0.00016986,2]
[367717559,1750901439935,-637.95,0.00016986,2]
[367717560,1750901439945,-506.95296881,0.00016986,2]
[367717561,1750901439954,-1510.05,0.00016986,2]
[367717562,1750901439964,-460.0,0.00016986,2]
[367717563,1750901439973,-460.0,0.00016986,2]
[367717564,1750901439983,-460.0,0.00016986,2]
[367717565,1750901439992,-460.0,0.00016986,2]
[367717566,1750901440002,-526.13,0.00016986,2]
[367717567,1750901440011,-460.0,0.00016986,2]
[367717568,1750901440020,-668.54,0.00016986,2]
[367717569,1750901440030,-460.0,0.00016986,2]
[367717570,1750901440040,-573.49,0.00016986,2]
[367717571,1750901440050,-245.23808075,0.00016986,2]
[367717572,1750901440059,-460.0,0.00016986,2]
[367717573,1750901440068,-460.0,0.00016986,2]
[367717574,1750901440078,-176.42018452,0.00017188,2]
[367717575,1750901440087,-500.0,0.00017188,2]
[367717576,1750901440097,-460.0,0.00017259,2]
[367717577,1750901440106,-428.791547,0.00017259,2]
[367717578,1750901440115,-460.0,0.0001726,2]
[367717579,1750901440129,-571.57,0.0001726,2]
[367717580,1750901440138,-460.0,0.0001726,2]
[367717581,1750901440147,-460.0,0.0001726,2]
[367717582,1750901440156,-562.59550903,0.0001726,2]
[367717583,1750901440166,-460.0,0.0001726,2]
[367717584,1750901440175,-460.0,0.0001726,2]
[367717585,1750901440184,-533.91,0.0001726,2]
[367717586,1750901440194,-460.0,0.0001726,2]
[367717587,1750901440204,-460.0,0.0001726,2]
[367717588,1750901440213,-460.0,0.0001726,2]
[367717589,1750901440222,-1584.07,0.0001726,2]
[367717590,1750901440231,-543.54,0.0001726,2]
[367717591,1750901440244,-460.0,0.0001726,2]
[367717592,1750901440253,-463.99,0.0001726,2]
[367717593,1750901440263,-460.0,0.0001726,2]
[367717594,1750901440272,-460.0,0.0001726,2]
[367717595,1750901440281,-554.24,0.0001726,2]
[367717596,1750901440290,-460.0,0.0001726,2]
[367717597,1750901440299,-622.01,0.0001726,2]
[367717598,1750901440308,-704.07,0.0001726,2]
[367717599,1750901440318,-912.96,0.0001726,2]
[367717600,1750901440328,-460.0,0.0001726,2]
[367717601,1750901440338,-637.95,0.0001726,2]
[367717602,1750901440347,-1510.05,0.0001726,2]
[367717603,1750901440356,-460.0,0.0001726,2]
[367717604,1750901440365,-460.0,0.0001726,2]
[367717605,1750901440375,-603.95069459,0.0001726,2]
[367717606,1750901440383,-460.0,0.0001726,2]
[367717608,1750901440393,-526.13,0.0001726,2]
[367717610,1750901440402,-460.0,0.0001726,2]
[367717611,1750901440411,-668.54,0.0001726,2]
[367717612,1750901440421,-460.0,0.0001726,2]
[367717613,1750901440430,-573.49,0.0001726,2]
[367717614,1750901440439,-460.0,0.0001726,2]
[367717615,1750901440447,-460.0,0.0001726,2]
[367717616,1750901440457,-500.0,0.00017306,2]
[367717617,1750901440466,-500.0,0.00017306,2]
[367717618,1750901440475,-500.0,0.00017324,2]
[367717619,1750901440484,-500.0,0.00017361,2]
[367717620,1750901440493,-244.4534282,0.0001739,2]
[367717621,1750901440502,-500.0,0.0001739,2]
[367717622,1750901440512,-500.0,0.000174,2]
[367717623,1750901440521,-500.0,0.000174,2]
[367717624,1750901440531,-297.13547445,0.00017533,2]
[367717625,1750901440540,-460.0,0.00017534,2]
[367717626,1750901440550,-460.0,0.00017534,2]
[367717627,1750901440560,-460.0,0.00017534,2]
[367717629,1750901440569,-460.0,0.00017534,2]
[367717631,1750901440579,-499.07,0.00017534,2]
[367717632,1750901440588,-1584.07,0.00017534,2]
[367717633,1750901440598,-543.54,0.00017534,2]
[367717634,1750901440607,-460.0,0.00017534,2]
[367717635,1750901440616,-463.99,0.00017534,2]
[367717636,1750901440626,-460.0,0.00017534,2]
[367717637,1750901440635,-460.0,0.00017534,2]
[367717638,1750901440644,-554.24,0.00017534,2]
[367717639,1750901440654,-460.0,0.00017534,2]
[367717640,1750901440663,-622.01,0.00017534,2]
[367717641,1750901440672,-704.07,0.00017534,2]
[367717642,1750901440680,-460.0,0.00017534,2]
[367717643,1750901440690,-912.96,0.00017534,2]
[367717644,1750901440699,-637.95,0.00017534,2]
[367717645,1750901440708,-1510.05,0.00017534,2]
[367717646,1750901440718,-460.0,0.00017534,2]
[367717647,1750901440727,-460.0,0.00017534,2]
[367717648,1750901440735,-460.0,0.00017534,2]
[367717649,1750901440744,-526.13,0.00017534,2]
[367717650,1750901440754,-460.0,0.00017534,2]
[367717651,1750901440763,-668.54,0.00017534,2]
[367717652,1750901440772,-460.0,0.00017534,2]
[367717653,1750901440781,-573.49,0.00017534,2]
[367717654,1750901440791,-460.0,0.00017534,2]
[367717655,1750901440799,-460.0,0.00017534,2]
[367717656,1750901440809,-896.9,0.00017725,3]
[367717657,1750901440818,-1000.0,0.00017735,2]
[367717658,1750901440827,-896.88,0.00017798,3]
[367717659,1750901440836,-460.0,0.00017808,2]
[367717660,1750901440846,-460.0,0.00017808,2]
[367717662,1750901440855,-460.0,0.00017808,2]
[367717664,1750901440864,-1584.07,0.00017808,2]
[367717666,1750901440874,-543.54,0.00017808,2]
[367717668,1750901440884,-460.0,0.00017808,2]
[367717670,1750901440893,-463.99,0.00017808,2]
[367717672,1750901440902,-460.0,0.00017808,2]
[367717674,1750901440912,-460.0,0.00017808,2]
[367717676,1750901440922,-554.24,0.00017808,2]
[367717678,1750901440931,-460.0,0.00017808,2]
[367717680,1750901440940,-622.01,0.00017808,2]
[367717682,1750901440950,-704.07,0.00017808,2]
[367717684,1750901440959,-460.0,0.00017808,2]
[367717686,1750901440968,-912.96,0.00017808,2]
[367717688,1750901440977,-637.95,0.00017808,2]
[367717690,1750901440986,-1510.05,0.00017808,2]
[367717692,1750901440995,-460.0,0.00017808,2]
[367717694,1750901441004,-460.0,0.00017808,2]
[367717696,1750901441014,-460.0,0.00017808,2]
[367717698,1750901441023,-526.13,0.00017808,2]
[367717700,1750901441032,-460.0,0.00017808,2]
[367717702,1750901441042,-668.54,0.00017808,2]
[367717704,1750901441053,-460.0,0.00017808,2]
[367717706,1750901441062,-573.49,0.00017808,2]
[367717708,1750901441072,-460.0,0.00017808,2]
[367717710,1750901441081,-460.0,0.00017808,2]
[367717712,1750901441090,-266.20483878,0.00017809,2]
[367717714,1750901441100,-1000.0,0.00017854,2]
[367717716,1750901441109,-623.88320114,0.00017871,2]
[367717718,1750901441118,-819.54110891,0.000179,2]
[367717720,1750901441129,-1000.0,0.00017909,2]
[367717723,1750901441140,-1000.0,0.00017948,2]
[367717725,1750901441149,-420.0,0.00017963,2]
[367717727,1750901441159,-300.0,0.00017963,2]
[367717729,1750901441169,-16511.45081284,0.00018,2]
[367717731,1750901441177,-4623.17132964,0.00018,2]
[367717732,1750901441186,-160.0,0.00018035,2]
[367717735,1750901441196,-836.86812089,0.00018035,2]
[367717737,1750901441206,-846.80634355,0.00018035,2]
[367717739,1750901441215,-230.22714675,0.00018035,2]
[367717740,1750901441224,-213.69531788,0.00018035,2]
[367717743,1750901441233,-160.0,0.00018035,2]
[367717745,1750901441242,-160.0,0.00018035,2]
[367717747,1750901441251,-160.0,0.00018035,2]
[367717749,1750901441260,-425.18553072,0.00018035,2]
[367717751,1750901441269,-160.0,0.00018035,2]
[367717753,1750901441278,-12558.06783089,0.00018035,2]
[367717755,1750901441288,-160.0,0.00018035,2]
[367717757,1750901441297,-160.0,0.00018035,2]
[367717759,1750901441307,-160.0,0.00018035,2]
[367717761,1750901441316,-460.0,0.00018082,2]
[367717763,1750901441325,-460.0,0.00018082,2]
[367717765,1750901441334,-1584.07,0.00018082,2]
[367717767,1750901441343,-543.54,0.00018082,2]
[367717769,1750901441352,-460.0,0.00018082,2]
[367717771,1750901441361,-463.99,0.00018082,2]
[367717773,1750901441370,-460.0,0.00018082,2]
[367717775,1750901441379,-460.0,0.00018082,2]
[367717777,1750901441388,-554.24,0.00018082,2]
[367717779,1750901441397,-460.0,0.00018082,2]
[367717781,1750901441406,-622.01,0.00018082,2]
[367717783,1750901441415,-704.07,0.00018082,2]
[367717785,1750901441425,-460.0,0.00018082,2]
[367717787,1750901441434,-912.96,0.00018082,2]
[367717789,1750901441443,-637.95,0.00018082,2]
[367717791,1750901441452,-1510.05,0.00018082,2]
[367717793,1750901441462,-460.0,0.00018082,2]
[367717795,1750901441471,-460.0,0.00018082,2]
[367717796,1750901441480,-460.0,0.00018082,2]
[367717798,1750901441490,-526.13,0.00018082,2]
[367717800,1750901441499,-460.0,0.00018082,2]
[367717802,1750901441508,-668.54,0.00018082,2]
[367717804,1750901441518,-514.1684879,0.00018082,2]
[367717806,1750901441527,-573.49,0.00018082,2]
[367717808,1750901441536,-460.0,0.00018082,2]
[367717810,1750901441545,-248.21826435,0.00018082,2]
[367717812,1750901441555,-165.9966585,0.00018082,2]
[367717814,1750901441564,-819.54110868,0.00018176,2]
[367717816,1750901441573,-1500.0,0.00018283,2]
[367717818,1750901441582,-266.20483877,0.00018325,2]
[367717821,1750901441591,-460.0,0.00018356,2]
[367717823,1750901441600,-460.0,0.00018356,2]
[367717825,1750901441610,-1584.07,0.00018356,2]
[367717826,1750901441619,-543.54,0.00018356,2]
[367717828,1750901441629,-460.0,0.00018356,2]